[Event "Early-Titled-Tuesday-Blitz-February-27-2024"]
[Site "Chess.com"]
[Date "2024.02.27"]
[Round "7"]
[White "InitiatingASC"]
[Black "JulbeNn"]
[Result "1/2-1/2"]
[WhiteElo "2362"]
[BlackElo "2521"]
[TimeControl "180+1"]
[EndTime "9:17:41 PST"]
[Termination "Game drawn by repetition"]

1. d4 {[%clk 0:02:40.5]} 1... Nf6 {[%clk 0:02:59.6]} 2. Bf4 {[%clk 0:02:37.7]}
2... c5 {[%clk 0:02:58.4]} 3. e3 {[%clk 0:02:37.1]} 3... cxd4 {[%clk 0:02:58]}
4. exd4 {[%clk 0:02:37]} 4... d5 {[%clk 0:02:56.2]} 5. Nf3 {[%clk 0:02:36.4]}
5... Nc6 {[%clk 0:02:55.9]} 6. c3 {[%clk 0:02:30.3]} 6... e6 {[%clk 0:02:51.9]}
7. Bd3 {[%clk 0:02:30.5]} 7... Bd6 {[%clk 0:02:51.6]} 8. Ne5 {[%clk 0:02:29.2]}
8... Bxe5 {[%clk 0:02:42.8]} 9. dxe5 {[%clk 0:02:28.6]} 9... Nd7 {[%clk
0:02:43.2]} 10. Qe2 {[%clk 0:02:21.7]} 10... Qc7 {[%clk 0:02:33.5]} 11. Nd2
{[%clk 0:02:21.1]} 11... Ndxe5 {[%clk 0:02:13.5]} 12. Bb5 {[%clk 0:02:19.8]}
12... f6 {[%clk 0:02:11.3]} 13. Qh5+ {[%clk 0:02:04.4]} 13... Qf7 {[%clk
0:02:10.7]} 14. Qe2 {[%clk 0:01:54.7]} 14... O-O {[%clk 0:02:02.5]} 15. O-O-O
{[%clk 0:01:47.9]} 15... a6 {[%clk 0:01:46.5]} 16. Ba4 {[%clk 0:01:47.8]} 16...
b5 {[%clk 0:01:46.9]} 17. Bc2 {[%clk 0:01:48.1]} 17... b4 {[%clk 0:01:47.4]} 18.
Nf3 {[%clk 0:01:37.1]} 18... bxc3 {[%clk 0:01:32.3]} 19. Nxe5 {[%clk 0:01:36.3]}
19... cxb2+ {[%clk 0:01:32.5]} 20. Kb1 {[%clk 0:01:36.1]} 20... fxe5 {[%clk
0:01:31.5]} 21. Bxe5 {[%clk 0:01:14.5]} 21... Nxe5 {[%clk 0:01:22.4]} 22. Qxe5
{[%clk 0:01:13.1]} 22... Qf6 {[%clk 0:01:11]} 23. Qh5 {[%clk 0:01:09.4]} 23...
g6 {[%clk 0:01:10.2]} 24. Qh6 {[%clk 0:01:07]} 24... Bd7 {[%clk 0:00:55.6]} 25.
h4 {[%clk 0:00:55.4]} 25... Qf4 {[%clk 0:00:50.5]} 26. Qxf4 {[%clk 0:00:49]}
26... Rxf4 {[%clk 0:00:51.4]} 27. f3 {[%clk 0:00:49.6]} 27... Rb8 {[%clk
0:00:42.9]} 28. h5 {[%clk 0:00:50.1]} 28... Be8 {[%clk 0:00:42.8]} 29. Rde1
{[%clk 0:00:44.8]} 29... Bf7 {[%clk 0:00:30.9]} 30. hxg6 {[%clk 0:00:44]} 30...
hxg6 {[%clk 0:00:31.8]} 31. Rh6 {[%clk 0:00:42.9]} 31... Kg7 {[%clk 0:00:32.1]}
32. Reh1 {[%clk 0:00:42.3]} 32... e5 {[%clk 0:00:22.2]} 33. Rh7+ {[%clk
0:00:19.5]} 33... Kf6 {[%clk 0:00:22.2]} 34. R1h6 {[%clk 0:00:18.9]} 34... a5
{[%clk 0:00:20.5]} 35. Rh8 {[%clk 0:00:10.1]} 35... Rxh8 {[%clk 0:00:12.5]} 36.
Rxh8 {[%clk 0:00:10.1]} 36... e4 {[%clk 0:00:12.7]} 37. fxe4 {[%clk 0:00:09.7]}
37... dxe4 {[%clk 0:00:13.6]} 38. Kxb2 {[%clk 0:00:10.3]} 38... e3 {[%clk
0:00:11.9]} 39. Kc3 {[%clk 0:00:08.7]} 39... Rc4+ {[%clk 0:00:06.6]} 40. Kd3
{[%clk 0:00:08.7]} 40... e2 {[%clk 0:00:06.7]} 41. Rh1 {[%clk 0:00:07.8]} 41...
Rc7 {[%clk 0:00:04.6]} 42. Bb1 {[%clk 0:00:04.9]} 42... Bc4+ {[%clk 0:00:04]}
43. Kd2 {[%clk 0:00:04.3]} 43... Bb5 {[%clk 0:00:03.8]} 44. Bd3 {[%clk
0:00:03.3]} 44... Rd7 {[%clk 0:00:03.4]} 45. Kxe2 {[%clk 0:00:03.8]} 45... Rxd3
{[%clk 0:00:02.8]} 46. Kf2 {[%clk 0:00:04.7]} 46... Rd2+ {[%clk 0:00:03]} 47.
Kg3 {[%clk 0:00:05.5]} 47... Rxa2 {[%clk 0:00:03.4]} 48. Rd1 {[%clk 0:00:05.5]}
48... Kg5 {[%clk 0:00:03.2]} 49. Rd5+ {[%clk 0:00:05.8]} 49... Kh6 {[%clk
0:00:03.4]} 50. Rxb5 {[%clk 0:00:06.7]} 50... a4 {[%clk 0:00:03.5]} 51. Ra5
{[%clk 0:00:06.9]} 51... a3 {[%clk 0:00:03.9]} 52. Ra8 {[%clk 0:00:06.9]} 52...
Ra1 {[%clk 0:00:04.2]} 53. Kh2 {[%clk 0:00:07.3]} 53... Kg5 {[%clk 0:00:04.6]}
54. Ra4 {[%clk 0:00:07.5]} 54... Kf5 {[%clk 0:00:04.8]} 55. Kg3 {[%clk
0:00:07.2]} 55... Ke5 {[%clk 0:00:04.9]} 56. Kg4 {[%clk 0:00:05.8]} 56... Kd5
{[%clk 0:00:04.3]} 57. Kg5 {[%clk 0:00:05.8]} 57... Kc5 {[%clk 0:00:03.4]} 58.
Kxg6 {[%clk 0:00:05.6]} 58... Kb5 {[%clk 0:00:03.8]} 59. Ra8 {[%clk 0:00:05.6]}
59... Kb4 {[%clk 0:00:04.3]} 60. g4 {[%clk 0:00:05.9]} 60... Rg1 {[%clk
0:00:04.2]} 61. g5 {[%clk 0:00:06.2]} 61... Kb3 {[%clk 0:00:04]} 62. Kf6 {[%clk
0:00:06.3]} 62... a2 {[%clk 0:00:03.9]} 63. g6 {[%clk 0:00:06.6]} 63... Rg4
{[%clk 0:00:02.7]} 64. g7 {[%clk 0:00:06.6]} 64... Rxg7 {[%clk 0:00:02.2]} 65.
Kxg7 {[%clk 0:00:06.7]} 65... Kb2 {[%clk 0:00:03.1]} 66. Rb8+ {[%clk 0:00:06.9]}
66... Kc2 {[%clk 0:00:03.1]} 67. Rc8+ {[%clk 0:00:07.2]} 67... Kb2 {[%clk
0:00:03.7]} 68. Rb8+ {[%clk 0:00:07.4]} 68... Kc2 {[%clk 0:00:04.2]} 69. Ra8
{[%clk 0:00:07.9]} 69... Kb2 {[%clk 0:00:04.5]} 70. Rb8+ {[%clk 0:00:08.3]}
1/2-1/2

[Event "Early-Titled-Tuesday-Blitz-February-27-2024"]
[Site "Chess.com"]
[Date "2024.02.27"]
[Round "7"]
[White "Honiex"]
[Black "PavelShkapenko"]
[Result "1/2-1/2"]
[WhiteElo "2567"]
[BlackElo "2755"]
[TimeControl "180+1"]
[EndTime "9:17:42 PST"]
[Termination "Game drawn - insufficient material"]

1. Nc3 {[%clk 0:02:55.4]} 1... d5 {[%clk 0:02:52.7]} 2. e4 {[%clk 0:02:54.3]}
2... dxe4 {[%clk 0:02:52.1]} 3. Nxe4 {[%clk 0:02:54.4]} 3... Nd7 {[%clk
0:02:52.7]} 4. Bc4 {[%clk 0:02:53.6]} 4... Ngf6 {[%clk 0:02:52.2]} 5. Bxf7+
{[%clk 0:02:53.5]} 5... Kxf7 {[%clk 0:02:50.9]} 6. Ng5+ {[%clk 0:02:54.4]} 6...
Kg8 {[%clk 0:02:49.5]} 7. Ne6 {[%clk 0:02:55]} 7... Qe8 {[%clk 0:02:49]} 8. Nxc7
{[%clk 0:02:55.5]} 8... Qg6 {[%clk 0:02:49.1]} 9. Nxa8 {[%clk 0:02:55.9]} 9...
Qxg2 {[%clk 0:02:29.6]} 10. Qf3 {[%clk 0:02:55.1]} 10... Qxf3 {[%clk 0:02:29.3]}
11. Nxf3 {[%clk 0:02:56]} 11... e5 {[%clk 0:02:28.7]} 12. d3 {[%clk 0:02:12.1]}
12... Bd6 {[%clk 0:02:23.1]} 13. Ng5 {[%clk 0:01:56.2]} 13... b6 {[%clk
0:02:19.3]} 14. Ne4 {[%clk 0:01:42]} 14... Nxe4 {[%clk 0:02:12.8]} 15. dxe4
{[%clk 0:01:42.9]} 15... Bb7 {[%clk 0:02:11.6]} 16. Nxb6 {[%clk 0:01:21]} 16...
axb6 {[%clk 0:01:56.9]} 17. f3 {[%clk 0:01:13]} 17... Kf7 {[%clk 0:01:49.4]} 18.
Be3 {[%clk 0:01:06.8]} 18... Ke6 {[%clk 0:01:31.7]} 19. c4 {[%clk 0:00:59.2]}
19... Bc5 {[%clk 0:01:28.6]} 20. Ke2 {[%clk 0:00:57.7]} 20... Nb8 {[%clk
0:01:26.6]} 21. a3 {[%clk 0:00:34.8]} 21... Nc6 {[%clk 0:01:10.2]} 22. b4 {[%clk
0:00:31.3]} 22... Bxe3 {[%clk 0:01:10.8]} 23. Kxe3 {[%clk 0:00:31.4]} 23... Nd4
{[%clk 0:01:11.3]} 24. Rac1 {[%clk 0:00:22.9]} 24... Rf8 {[%clk 0:00:52.1]} 25.
Rhf1 {[%clk 0:00:21.4]} 25... g5 {[%clk 0:00:52.6]} 26. c5 {[%clk 0:00:20.2]}
26... b5 {[%clk 0:00:52.5]} 27. Rcd1 {[%clk 0:00:19.3]} 27... Bc6 {[%clk
0:00:43.1]} 28. Rd2 {[%clk 0:00:16.6]} 28... Ra8 {[%clk 0:00:42]} 29. Rd3 {[%clk
0:00:15.4]} 29... h6 {[%clk 0:00:39]} 30. h4 {[%clk 0:00:14.7]} 30... gxh4
{[%clk 0:00:34.1]} 31. Rd2 {[%clk 0:00:14.2]} 31... Rf8 {[%clk 0:00:34.3]} 32.
Rh2 {[%clk 0:00:13.7]} 32... Rf4 {[%clk 0:00:33.7]} 33. Rff2 {[%clk 0:00:12.5]}
33... Kf6 {[%clk 0:00:32.3]} 34. Rh3 {[%clk 0:00:12.9]} 34... Bd7 {[%clk
0:00:32.2]} 35. Rhh2 {[%clk 0:00:11]} 35... h3 {[%clk 0:00:32.6]} 36. Rf1 {[%clk
0:00:10.4]} 36... Kg5 {[%clk 0:00:27]} 37. Rhf2 {[%clk 0:00:09.2]} 37... Kf6
{[%clk 0:00:23.1]} 38. Rg1 {[%clk 0:00:08.8]} 38... Kf7 {[%clk 0:00:17.2]} 39.
Rgf1 {[%clk 0:00:07.9]} 39... Be6 {[%clk 0:00:16.8]} 40. Rg1 {[%clk 0:00:08.5]}
40... h5 {[%clk 0:00:16.5]} 41. Rg5 {[%clk 0:00:05.5]} 41... Rh4 {[%clk
0:00:16.5]} 42. Rxe5 {[%clk 0:00:05.4]} 42... h2 {[%clk 0:00:16.1]} 43. Rxh2
{[%clk 0:00:05.7]} 43... Rxh2 {[%clk 0:00:14.5]} 44. Kxd4 {[%clk 0:00:06.1]}
44... h4 {[%clk 0:00:14.5]} 45. c6 {[%clk 0:00:06.4]} 45... Rc2 {[%clk
0:00:10.3]} 46. Rxb5 {[%clk 0:00:04.5]} 46... h3 {[%clk 0:00:09.7]} 47. Rh5
{[%clk 0:00:02.8]} 47... Rxc6 {[%clk 0:00:09.7]} 48. b5 {[%clk 0:00:03]} 48...
Rc4+ {[%clk 0:00:09.6]} 49. Kd3 {[%clk 0:00:02.4]} 49... Ra4 {[%clk 0:00:09.3]}
50. f4 {[%clk 0:00:01.4]} 50... Rxa3+ {[%clk 0:00:09.3]} 51. Kd4 {[%clk
0:00:02.1]} 51... Ra4+ {[%clk 0:00:06.5]} 52. Ke5 {[%clk 0:00:02.4]} 52... Bg4
{[%clk 0:00:06.6]} 53. Rh4 {[%clk 0:00:02.3]} 53... Bd7 {[%clk 0:00:05.9]} 54.
f5 {[%clk 0:00:02.3]} 54... Bxb5 {[%clk 0:00:05.3]} 55. Rxh3 {[%clk 0:00:02.9]}
55... Bc6 {[%clk 0:00:05.5]} 56. Rh4 {[%clk 0:00:03.6]} 56... Kg7 {[%clk
0:00:03.8]} 57. Rf4 {[%clk 0:00:04.2]} 57... Kf7 {[%clk 0:00:03.2]} 58. Rg4
{[%clk 0:00:04.7]} 58... Ra5+ {[%clk 0:00:03.5]} 59. Kd6 {[%clk 0:00:04.5]}
59... Bxe4 {[%clk 0:00:03.2]} 60. Rxe4 {[%clk 0:00:04.2]} 60... Rxf5 {[%clk
0:00:03.8]} 61. Rd4 {[%clk 0:00:04.7]} 61... Rf6+ {[%clk 0:00:04.3]} 62. Ke5
{[%clk 0:00:04.9]} 62... Re6+ {[%clk 0:00:03.6]} 63. Kd5 {[%clk 0:00:05.4]}
63... Re7 {[%clk 0:00:04.1]} 64. Re4 {[%clk 0:00:06]} 64... Rxe4 {[%clk
0:00:03.7]} 65. Kxe4 {[%clk 0:00:06.7]} 1/2-1/2

[Event "Early-Titled-Tuesday-Blitz-February-27-2024"]
[Site "Chess.com"]
[Date "2024.02.27"]
[Round "7"]
[White "Mesa_1"]
[Black "Knightmare1014"]
[Result "1-0"]
[WhiteElo "2499"]
[BlackElo "2295"]
[TimeControl "180+1"]
[EndTime "9:17:52 PST"]
[Termination "Mesa_1 won on time"]

1. e4 {[%clk 0:03:00.9]} 1... c5 {[%clk 0:03:00]} 2. Nc3 {[%clk 0:03:00.2]} 2...
e6 {[%clk 0:02:59.4]} 3. Nf3 {[%clk 0:02:55.6]} 3... a6 {[%clk 0:02:58.6]} 4. d4
{[%clk 0:02:52.9]} 4... cxd4 {[%clk 0:02:59.5]} 5. Nxd4 {[%clk 0:02:53.8]} 5...
Qc7 {[%clk 0:02:58]} 6. Bd3 {[%clk 0:02:51.8]} 6... Nf6 {[%clk 0:02:57.3]} 7.
Qe2 {[%clk 0:02:50.1]} 7... d6 {[%clk 0:02:53.7]} 8. f4 {[%clk 0:02:50.3]} 8...
Nbd7 {[%clk 0:02:53.8]} 9. g4 {[%clk 0:02:49.9]} 9... h6 {[%clk 0:02:22.8]} 10.
Rf1 {[%clk 0:02:42.9]} 10... Be7 {[%clk 0:02:16.1]} 11. g5 {[%clk 0:02:40.9]}
11... Ng8 {[%clk 0:02:11.6]} 12. g6 {[%clk 0:02:40]} 12... Bh4+ {[%clk
0:02:00.1]} 13. Kd1 {[%clk 0:02:38.3]} 13... Nc5 {[%clk 0:02:00]} 14. gxf7+
{[%clk 0:02:37.3]} 14... Qxf7 {[%clk 0:01:59.6]} 15. Bc4 {[%clk 0:02:36.4]}
15... b5 {[%clk 0:01:49.8]} 16. f5 {[%clk 0:02:25]} 16... bxc4 {[%clk 0:01:36]}
17. fxe6 {[%clk 0:02:25.3]} 17... Qg6 {[%clk 0:01:31.8]} 18. Nd5 {[%clk
0:02:25.5]} 18... Nxe6 {[%clk 0:01:17.9]} 19. Nxe6 {[%clk 0:02:22.6]} 19... Bxe6
{[%clk 0:01:17.9]} 20. Nf4 {[%clk 0:02:23.2]} 20... Qg4 {[%clk 0:01:12.2]} 21.
Nxe6 {[%clk 0:02:22.5]} 21... Qxe6 {[%clk 0:00:47.7]} 22. Qh5+ {[%clk
0:02:22.7]} 22... Kd7 {[%clk 0:00:41.1]} 23. Qxh4 {[%clk 0:02:23.1]} 23... Ne7
{[%clk 0:00:41.2]} 24. Bd2 {[%clk 0:02:12.4]} 24... g5 {[%clk 0:00:38.2]} 25.
Qg3 {[%clk 0:02:10.2]} 25... Rhf8 {[%clk 0:00:35.3]} 26. Re1 {[%clk 0:02:05.2]}
26... Ng6 {[%clk 0:00:32.1]} 27. a4 {[%clk 0:02:03.6]} 27... Nf4 {[%clk
0:00:27.6]} 28. Qc3 {[%clk 0:02:04.1]} 28... Rab8 {[%clk 0:00:22.5]} 29. a5
{[%clk 0:02:03.3]} 29... Rb5 {[%clk 0:00:21.5]} 30. Ra4 {[%clk 0:02:03.3]} 30...
Rc8 {[%clk 0:00:19.7]} 31. Qg7+ {[%clk 0:02:00.1]} 31... Qe7 {[%clk 0:00:17.6]}
32. Qxh6 {[%clk 0:01:59.8]} 32... Qe5 {[%clk 0:00:14.3]} 33. Qh7+ {[%clk
0:01:55.7]} 33... Qe7 {[%clk 0:00:14.2]} 34. Qh6 {[%clk 0:01:48.2]} 34... Rxb2
{[%clk 0:00:13.6]} 35. Bxf4 {[%clk 0:01:26.8]} 35... gxf4 {[%clk 0:00:11.9]} 36.
Qh3+ {[%clk 0:01:27.5]} 36... Qe6 {[%clk 0:00:10.4]} 37. Qc3 {[%clk 0:01:28.1]}
37... Rb1+ {[%clk 0:00:09.9]} 38. Kd2 {[%clk 0:01:25.3]} 38... Rxe1 {[%clk
0:00:10]} 39. Qg7+ {[%clk 0:01:17.1]} 39... Kc6 {[%clk 0:00:08.9]} 40. Kxe1
{[%clk 0:01:10.8]} 40... Qxe4+ {[%clk 0:00:09.1]} 41. Kd1 {[%clk 0:01:08.6]}
41... Qf3+ {[%clk 0:00:09.1]} 42. Kc1 {[%clk 0:01:07.1]} 42... Qf1+ {[%clk
0:00:09.2]} 43. Kd2 {[%clk 0:01:03.7]} 43... Qf2+ {[%clk 0:00:08.6]} 44. Kc3
{[%clk 0:00:44.7]} 44... Qe3+ {[%clk 0:00:07.9]} 45. Kb2 {[%clk 0:00:45.3]}
45... Rb8+ {[%clk 0:00:07.6]} 46. Ka2 {[%clk 0:00:45.9]} 46... Qc5 {[%clk
0:00:04.9]} 47. Qc3 {[%clk 0:00:40.9]} 47... d5 {[%clk 0:00:03.1]} 48. Ra3
{[%clk 0:00:39.9]} 48... Qd6 {[%clk 0:00:02.7]} 49. h4 {[%clk 0:00:36]} 49...
Kd7 {[%clk 0:00:03.3]} 50. h5 {[%clk 0:00:35.5]} 50... Rf8 {[%clk 0:00:03.3]}
51. Qg7+ {[%clk 0:00:34.4]} 51... Kc6 {[%clk 0:00:01.9]} 52. h6 {[%clk
0:00:32.6]} 52... f3 {[%clk 0:00:02]} 53. h7 {[%clk 0:00:29.4]} 53... f2 {[%clk
0:00:02.3]} 54. h8=Q {[%clk 0:00:20]} 54... Rxh8 {[%clk 0:00:02.4]} 55. Qxh8
{[%clk 0:00:19.2]} 55... f1=Q {[%clk 0:00:03.3]} 56. Qc8+ {[%clk 0:00:19.2]}
56... Qc7 {[%clk 0:00:03.8]} 57. Qxa6+ {[%clk 0:00:19.4]} 57... Kd7 {[%clk
0:00:04.2]} 58. Qb5+ {[%clk 0:00:18.9]} 58... Qc6 {[%clk 0:00:04.5]} 59. Qb8
{[%clk 0:00:17.8]} 59... Ke6 {[%clk 0:00:04.4]} 60. Re3+ {[%clk 0:00:17.4]}
60... Kf7 {[%clk 0:00:02.1]} 61. Qe5 {[%clk 0:00:13.6]} 1-0

[Event "Early-Titled-Tuesday-Blitz-February-27-2024"]
[Site "Chess.com"]
[Date "2024.02.27"]
[Round "7"]
[White "wannabe2700"]
[Black "rasmussvane"]
[Result "1-0"]
[WhiteElo "2757"]
[BlackElo "2937"]
[TimeControl "180+1"]
[EndTime "9:17:57 PST"]
[Termination "wannabe2700 won by resignation"]

1. b3 {[%clk 0:03:00.9]} 1... d5 {[%clk 0:02:57.9]} 2. Bb2 {[%clk 0:03:01.8]}
2... Nf6 {[%clk 0:02:51.9]} 3. Nf3 {[%clk 0:03:01.3]} 3... Bf5 {[%clk
0:02:50.5]} 4. g3 {[%clk 0:03:01.6]} 4... h6 {[%clk 0:02:48.9]} 5. Bg2 {[%clk
0:03:01.9]} 5... e6 {[%clk 0:02:48.3]} 6. O-O {[%clk 0:03:02.6]} 6... Be7 {[%clk
0:02:47.4]} 7. d3 {[%clk 0:03:03.2]} 7... O-O {[%clk 0:02:46.8]} 8. Nbd2 {[%clk
0:03:03.7]} 8... Bh7 {[%clk 0:02:35.8]} 9. Ne5 {[%clk 0:03:00.5]} 9... Nfd7
{[%clk 0:02:34]} 10. Nxd7 {[%clk 0:02:59]} 10... Nxd7 {[%clk 0:02:32.2]} 11. e4
{[%clk 0:02:59.9]} 11... c6 {[%clk 0:02:31]} 12. f4 {[%clk 0:02:52.9]} 12... a5
{[%clk 0:02:27.2]} 13. a3 {[%clk 0:02:52.5]} 13... a4 {[%clk 0:02:20]} 14. b4
{[%clk 0:02:50.6]} 14... Nb6 {[%clk 0:02:06.5]} 15. Qe2 {[%clk 0:02:35.5]} 15...
c5 {[%clk 0:01:54.9]} 16. f5 {[%clk 0:02:04.7]} 16... exf5 {[%clk 0:01:50.5]}
17. exf5 {[%clk 0:02:05]} 17... Nd7 {[%clk 0:01:12.6]} 18. Bxd5 {[%clk
0:01:52.1]} 18... cxb4 {[%clk 0:01:10.9]} 19. axb4 {[%clk 0:01:50.9]} 19... Nf6
{[%clk 0:00:54]} 20. Bg2 {[%clk 0:01:50.9]} 20... Bxb4 {[%clk 0:00:51.6]} 21.
Ne4 {[%clk 0:01:43.6]} 21... Be7 {[%clk 0:00:50.7]} 22. Kh1 {[%clk 0:01:39.5]}
22... Re8 {[%clk 0:00:50.2]} 23. Rab1 {[%clk 0:01:34.5]} 23... a3 {[%clk
0:00:50]} 24. Ba1 {[%clk 0:01:34.4]} 24... Ra7 {[%clk 0:00:34.3]} 25. Qf2 {[%clk
0:01:28.9]} 25... Ra5 {[%clk 0:00:33.1]} 26. g4 {[%clk 0:00:39.3]} 26... Nxe4
{[%clk 0:00:18.3]} 27. Bxe4 {[%clk 0:00:36.9]} 27... Bf6 {[%clk 0:00:18.7]} 28.
Rxb7 {[%clk 0:00:33.5]} 28... a2 {[%clk 0:00:17.4]} 29. Qb6 {[%clk 0:00:29.3]}
29... Qxb6 {[%clk 0:00:09.9]} 30. Rxb6 {[%clk 0:00:30.2]} 30... Bxa1 {[%clk
0:00:10.3]} 31. Rxa1 {[%clk 0:00:30.3]} 31... h5 {[%clk 0:00:10.9]} 32. h3
{[%clk 0:00:29.9]} 32... hxg4 {[%clk 0:00:08.6]} 33. hxg4 {[%clk 0:00:30.8]}
33... g6 {[%clk 0:00:03.2]} 34. Rb2 {[%clk 0:00:17.1]} 34... gxf5 {[%clk
0:00:03.7]} 35. gxf5 {[%clk 0:00:17.9]} 35... Bxf5 {[%clk 0:00:04.4]} 36. Bxf5
{[%clk 0:00:16.9]} 36... Rxf5 {[%clk 0:00:05.3]} 37. Rbxa2 {[%clk 0:00:15.5]}
37... Re2 {[%clk 0:00:05.9]} 38. Rg1+ {[%clk 0:00:15]} 38... Kh7 {[%clk
0:00:06.3]} 39. Rg3 {[%clk 0:00:14.4]} 39... Rf1+ {[%clk 0:00:06.4]} 40. Rg1
{[%clk 0:00:14.9]} 40... Rf3 {[%clk 0:00:05.5]} 41. Rg4 {[%clk 0:00:13.7]} 41...
Rf1+ {[%clk 0:00:04.8]} 42. Rg1 {[%clk 0:00:13.9]} 42... Rff2 {[%clk 0:00:05.5]}
43. Rg3 {[%clk 0:00:12.8]} 43... Rh2+ {[%clk 0:00:05.2]} 44. Kg1 {[%clk
0:00:13.1]} 44... Rd2 {[%clk 0:00:06]} 45. Ra7 {[%clk 0:00:12.2]} 45... Rhe2
{[%clk 0:00:06.3]} 46. Rxf7+ {[%clk 0:00:11.9]} 46... Kh6 {[%clk 0:00:06.9]} 47.
Rf8 {[%clk 0:00:11.1]} 47... Rd1+ {[%clk 0:00:06.1]} 48. Rf1 {[%clk 0:00:11.6]}
48... Rxf1+ {[%clk 0:00:06.8]} 49. Kxf1 {[%clk 0:00:11.9]} 49... Rxc2 {[%clk
0:00:07.5]} 50. Ke1 {[%clk 0:00:12.4]} 50... Kh5 {[%clk 0:00:06.9]} 51. Kd1
{[%clk 0:00:12.1]} 51... Ra2 {[%clk 0:00:06.9]} 52. d4 {[%clk 0:00:12.1]} 52...
Ra4 {[%clk 0:00:06.8]} 53. Rd3 {[%clk 0:00:11.7]} 53... Kg6 {[%clk 0:00:07.3]}
54. Kc2 {[%clk 0:00:11]} 54... Kf7 {[%clk 0:00:07.4]} 55. Kb3 {[%clk 0:00:11.5]}
55... Ra1 {[%clk 0:00:06.8]} 56. Re3 {[%clk 0:00:11.8]} 56... Ra5 {[%clk
0:00:02.4]} 57. Kc4 {[%clk 0:00:11.3]} 57... Ra4+ {[%clk 0:00:02.9]} 58. Kc5
{[%clk 0:00:11.2]} 58... Ra5+ {[%clk 0:00:03.4]} 59. Kc6 {[%clk 0:00:11.2]}
59... Ra6+ {[%clk 0:00:03.1]} 60. Kc5 {[%clk 0:00:08.6]} 60... Ra5+ {[%clk
0:00:03.3]} 61. Kc6 {[%clk 0:00:07.1]} 61... Ra6+ {[%clk 0:00:03.9]} 62. Kb5
{[%clk 0:00:07.8]} 62... Ra2 {[%clk 0:00:02.1]} 63. d5 {[%clk 0:00:05.4]} 63...
Ra8 {[%clk 0:00:02.4]} 64. d6 {[%clk 0:00:03.8]} 64... Re8 {[%clk 0:00:02.8]}
65. Rxe8 {[%clk 0:00:03.1]} 65... Kxe8 {[%clk 0:00:03.1]} 66. Kc6 {[%clk
0:00:03.6]} 66... Kd8 {[%clk 0:00:02.5]} 67. d7 {[%clk 0:00:04.2]} 67... Ke7
{[%clk 0:00:02.1]} 68. Kc7 {[%clk 0:00:05.1]} 68... Ke6 {[%clk 0:00:02.5]} 69.
d8=Q {[%clk 0:00:06]} 69... Ke5 {[%clk 0:00:02.6]} 70. Qd6+ {[%clk 0:00:06.9]}
70... Ke4 {[%clk 0:00:03.1]} 71. Kc6 {[%clk 0:00:07.4]} 71... Ke3 {[%clk
0:00:04]} 72. Qd5 {[%clk 0:00:08.1]} 72... Ke2 {[%clk 0:00:04.9]} 73. Kc5 {[%clk
0:00:09]} 73... Ke1 {[%clk 0:00:05.8]} 74. Qd4 {[%clk 0:00:09.7]} 74... Kf1
{[%clk 0:00:06.2]} 75. Kc4 {[%clk 0:00:10.3]} 75... Kg2 {[%clk 0:00:06.4]} 76.
Qe3 {[%clk 0:00:09.8]} 1-0